bitfinex/quotes_ETHUSD_20240731
["timestamp","ask_amount","ask_price","bid_price","bid_amount"]
[1722412697647,1.25391614,3323.6,3323.3,3.00904]
[1722412698144,1.25391614,3323.7,3323.3,3.00904]
[1722412700145,1.25391614,3323.7,3323.4,3.00896]
[1722412700718,1.25391614,3323.7,3323.2,3.00912]
[1722412700919,1.25391614,3323.6,3323.2,3.00912]
[1722412701963,1.25391614,3323.6,3323.3,3.00904]
[1722412703376,1.25391614,3323.7,3323.3,3.610866]
[1722412703660,1.25391614,3323.7,3323.5,3.00887]
[1722412704171,1.25391614,3323.7,3323.4,3.00895]
[1722412704878,1.25334777,3323.6,3323.4,3.00895]
[1722412705043,1.25334777,3323.7,3323.2,3.00908]
[1722412705240,10.48852,3323.9,3323.2,3.00908]
[1722412705460,1.25335527,3323.7,3323.2,3.00908]
[1722412705681,1.25335527,3323.7,3323.3,3.00904]
[1722412705855,1.25335527,3323.6,3323.3,3.00904]
[1722412706370,1.25335527,3323.7,3323.3,3.00904]
[1722412707256,1.25335527,3323.6,3323.4,3.00896]
[1722412707881,1.25335527,3323.7,3323.5,3.00887]
[1722412708064,1.25335527,3323.8,3323.5,3.00887]
[1722412708564,1.25335527,3323.8,3323.4,0.60181]
[1722412708764,7.48,3323.9,3323.1,0.54654]
[1722412708765,1.25335527,3323.9,3323.5,3.00885]
[1722412708969,1.25335527,3323.9,3323.8,6.0172]
[1722412709189,1.25335527,3324.3,3323.8,3.06016523]
[1722412709485,1.56673002,3324.5,3324.0,3.00836]
[1722412709486,1.25335527,3324.4,3324.0,3.00836]
[1722412709638,1.25335527,3324.3,3324.0,3.06852167]
[1722412710153,1.25335527,3324.2,3324.0,3.06852167]
[1722412710477,1.56673002,3324.4,3324.0,3.00836]
[1722412710478,1.25335527,3324.3,3324.0,3.00836]
[1722412711166,1.25335527,3324.4,3324.0,3.00836]
[1722412711366,1.25335527,3324.3,3324.0,3.00836]
[1722412713064,1.25335527,3324.3,3324.1,3.00825]
[1722412713318,1.25335527,3324.4,3324.0,3.06852224]
[1722412713467,1.25335527,3324.4,3324.2,3.00818]
[1722412713864,1.56661038,3324.6,3324.2,3.00818]
[1722412713865,1.25271816,3324.5,3324.2,3.00818]
[1722412714377,1.25271816,3324.4,3324.2,3.00818]
[1722412714711,1.25271816,3324.5,3324.2,3.00818]
[1722412716487,1.25271816,3324.5,3324.0,3.00836]
[1722412721678,1.25271816,3324.5,3324.1,3.0684897]
[1722412722780,1.25271816,3324.5,3324.1,3.00833]
[1722412723324,1.25271816,3324.5,3323.9,3.00851]
[1722412723839,1.25271816,3324.5,3324.0,3.0084]
[1722412724643,4.26074816,3324.5,3323.8,3.00853]
[1722412724933,1.25271816,3324.4,3323.9,3.00851]
[1722412725845,3.00816,3324.3,3323.8,0.300865]
[1722412726147,3.00816,3324.3,3323.4,3.0]
[1722412726148,3.00843,3324.0,3323.4,3.00895]
[1722412726463,4.26097816,3324.2,3323.5,3.00884]
[1722412726740,1.25271816,3324.0,3323.5,3.00884]
[1722412726909,4.26104816,3324.1,3323.5,3.00884]
[1722412727339,1.25271816,3324.0,3323.5,3.00884]
[1722412727749,4.26104816,3324.1,3323.5,3.00884]
[1722412728039,1.25271816,3324.0,3323.5,3.00884]
[1722412728243,1.25271816,3324.1,3323.6,3.00876]
[1722412728795,1.25271816,3324.2,3323.7,3.00869]
[1722412729114,3.00855,3323.9,3323.2,3.00913]
[1722412729315,1.25271816,3323.9,3323.2,3.00913]
[1722412729526,1.25271816,3324.0,3323.3,0.355567]
[1722412729731,1.25271816,3323.9,3323.3,0.355567]
[1722412730062,1.25271816,3323.9,3323.4,3.0089]
[1722412730249,1.25271816,3323.8,3323.4,6.05791288]
[1722412730758,1.25271816,3323.8,3323.5,3.00884]
[1722412731057,1.25271816,3323.8,3323.4,3.04901288]
[1722412731651,1.25271816,3323.7,3323.3,0.355567]
[1722412732715,1.25271816,3323.6,3323.3,0.355567]
[1722412733047,3.00894,3323.5,3322.8,3.00948]
[1722412733263,3.00894,3323.5,3322.2,3.00997]
[1722412733264,1.25271816,3323.4,3322.9,5.37061]
[1722412733425,3.00894,3323.5,3322.9,5.37061]
[1722412733426,4.26165816,3323.5,3322.9,5.37061]
[1722412733627,1.25271816,3323.3,3323.0,0.537061]
[1722412734278,1.25271816,3323.3,3323.0,3.546321]
[1722412734429,1.25271816,3323.3,3323.1,3.00923]
[1722412734773,1.25271816,3323.4,3323.1,3.00923]
[1722412734937,1.25271816,3323.4,3323.1,3.9009201]
[1722412735348,1.25271816,3323.3,3323.1,3.9009201]
[1722412735658,1.25271816,3323.4,3323.1,3.9009201]
[1722412736324,1.25271816,3323.3,3323.1,3.9009201]
[1722412736724,1.25271816,3323.2,3323.1,3.9009201]
[1722412738577,1.25271816,3323.2,3323.1,6.9101501]
[1722412738871,1.25271816,3323.3,3323.2,3.00914]
[1722412739078,1.25271816,3323.3,3323.2,3.86495211]
[1722412739235,1.56761463,3323.4,3323.2,3.86495211]
[1722412739432,1.56761463,3323.4,3323.2,3.00914]
[1722412739659,1.25442441,3323.4,3323.3,3.00905]
[1722412739848,4.11946,3324.0,3323.3,3.00905]
[1722412739849,1.56761463,3323.5,3323.3,3.00905]
[1722412740636,1.56761463,3323.5,3323.4,3.00896]
[1722412740969,1.56810162,3323.5,3323.4,3.00896]
[1722412741141,1.25459028,3323.7,3323.4,3.3726]
[1722412741345,1.56810162,3323.9,3323.8,6.0172]
[1722412741563,8.591,3324.6,3323.8,6.0172]
[1722412741564,1.56810162,3324.0,3323.9,3.00851]
[1722412741765,1.56810162,3324.1,3323.9,3.00851]
[1722412742087,1.25485029,3324.0,3323.9,3.00851]
[1722412742227,1.25485029,3324.0,3323.9,3.610221]
[1722412743077,1.56810162,3324.1,3323.9,3.610221]
[1722412743486,1.25468813,3324.0,3323.9,3.610221]
[1722412743774,1.25468813,3324.0,3323.9,3.00851]
[1722412744441,1.5682584,3324.1,3323.8,3.0086]
[1722412744787,1.25449797,3323.9,3323.8,3.0086]
[1722412746575,1.25449797,3323.9,3323.8,6.0172]
[1722412746753,1.25449797,3324.0,3323.9,3.00851]
[1722412747076,1.25449797,3324.1,3323.9,3.00851]
[1722412747241,1.25449797,3324.1,3324.0,3.00842]
[1722412747650,1.56807722,3324.2,3324.1,3.00833]
[1722412747875,1.111,3324.6,3324.1,3.00833]
[1722412747876,1.56807722,3324.3,3324.1,3.00833]
[1722412748370,1.56807722,3324.2,3324.1,3.00833]
[1722412749964,1.56807722,3324.2,3323.9,3.00845]
[1722412750265,1.25447384,3324.0,3323.9,3.00845]
[1722412751068,1.25447384,3324.0,3323.6,4.11975]
[1722412751256,1.25447384,3324.0,3323.7,3.04901288]
[1722412752181,1.25447384,3324.0,3323.8,3.00854]
[1722412752706,1.25447384,3324.0,3323.7,3.04901288]
[1722412752858,1.25447384,3324.0,3323.8,3.00859]
[1722412753877,1.25447384,3324.0,3323.9,3.00851]
[1722412756400,1.56831796,3324.1,3323.9,3.00851]
[1722412757130,1.25487281,3324.0,3323.9,3.00851]
[1722412757593,1.56855601,3324.1,3323.7,3.00864]
[1722412757796,1.25486787,3323.9,3323.8,3.0086]
[1722412759841,1.25486787,3324.0,3323.9,3.00851]
[1722412763241,1.25486787,3324.1,3324.0,3.00842]
[1722412763397,1.5686993,3324.2,3324.0,3.00842]
[1722412764002,1.5686993,3324.1,3323.9,3.00849]
[1722412764254,1.56881619,3324.2,3324.0,3.00842]
[1722412764843,1.56881619,3324.1,3324.0,3.00842]
[1722412766434,1.56881619,3324.2,3324.1,3.00833]
[1722412766834,1.56881619,3324.2,3323.9,3.00843]
[1722412767073,1.25499571,3324.0,3323.8,3.00857]
[1722412767272,1.25499571,3324.0,3323.8,3.72542829]
[1722412768690,1.25499571,3324.0,3323.9,6.01702]
[1722412770097,1.25518619,3324.0,3323.9,6.01702]
[1722412770758,1.25518619,3324.0,3323.9,8.41138471]
[1722412770963,2.4755,3324.7,3323.9,8.41138471]
[1722412770964,1.25518619,3324.2,3324.1,3.00833]
[1722412771147,1.25518619,3324.2,3324.1,6.01666]
[1722412771348,1.25518619,3324.3,3324.2,3.00824]
[1722412771582,1.56923432,3324.4,3324.2,3.00824]
[1722412772291,1.56923432,3324.3,3324.2,3.00824]
[1722412772493,1.56923432,3324.4,3324.2,3.00824]
[1722412772914,1.56923432,3324.4,3324.1,3.00832]
[1722412773084,1.25511171,3324.2,3323.9,3.00847]
[1722412773404,1.25511171,3324.1,3323.9,3.00847]
[1722412773612,1.25511171,3324.0,3323.9,3.00847]
[1722412773964,1.25507255,3324.0,3323.9,3.00847]
[1722412774777,1.25507255,3324.0,3323.7,3.00863]
[1722412774981,1.25507255,3324.0,3323.7,3.420593]
[1722412775193,1.25507255,3323.9,3323.7,3.420593]
[1722412777276,1.25507255,3323.9,3323.5,3.00886]
[1722412777617,1.25507255,3323.8,3323.5,3.00886]
[1722412777913,1.25507255,3323.7,3323.6,3.00878]
[1722412778113,1.25507255,3323.7,3323.6,3.76245369]
[1722412779467,1.25507255,3323.7,3323.6,0.75367369]
[1722412780379,1.56885584,3323.8,3323.6,3.76245369]
[1722412780906,4.36222701,3324.1,3323.6,3.76245369]
[1722412780907,2.4796,3324.1,3323.6,3.76245369]
[1722412781113,2.4796,3324.1,3323.6,3.00878]
[1722412781114,1.56923637,3323.8,3323.6,3.00878]
[1722412781474,3.95343637,3323.7,3322.7,2.3705]
[1722412781719,3.95343637,3323.7,3322.7,0.98405]
[1722412781720,1.2554499,3323.1,3322.7,0.98405]
[1722412781870,1.2554499,3323.0,3322.7,0.98405]
[1722412782068,1.56931237,3323.1,3322.8,3.0095]
[1722412782069,1.2554499,3322.9,3322.8,3.0095]
[1722412782274,1.2554499,3323.0,3322.9,3.00941]
[1722412782496,1.2554499,3323.1,3323.0,6.01864]
[1722412782815,4.47778871,3324.2,3323.0,1.111]
[1722412782816,1.2554499,3323.3,3323.0,1.111]
[1722412783022,1.2554499,3323.5,3323.4,6.01792]
[1722412783381,1.2554499,3323.5,3323.4,7.12892]
[1722412783585,1.56931237,3323.7,3323.4,7.12892]
[1722412783586,1.2554499,3323.6,3323.5,6.01774]
[1722412784401,1.5697403,3323.7,3323.6,3.00878]
[1722412784799,1.5697403,3323.8,3323.7,3.00869]
[1722412785020,1.5697403,3323.8,3323.6,4.11978]
[1722412785021,1.88368836,3324.1,3323.8,3.0086]
[1722412785428,1.88368836,3324.1,3323.4,6.41893]
[1722412785734,1.57044711,3323.8,3323.6,3.00878]
[1722412786097,1.57044711,3323.8,3323.7,3.00869]
[1722412787516,2.4491,3324.3,3323.7,3.00869]
[1722412787716,1.88495654,3324.0,3323.8,3.00859]
[1722412788849,1.88495654,3324.0,3323.7,3.00868]
[1722412789144,7.65638597,3324.3,3323.7,3.00868]
[1722412789145,1.88495654,3323.9,3323.7,3.00868]
[1722412789338,1.88495654,3323.8,3323.4,3.00896]
[1722412789657,1.57054689,3323.5,3323.4,3.00896]
[1722412790716,1.57054689,3323.5,3323.2,3.00913]
[1722412790928,1.57054689,3323.5,3323.0,4.8384466]
[1722412790929,1.57039383,3323.4,3323.0,3.7274466]
[1722412791141,1.57039383,3323.3,3323.1,6.00922]
[1722412791334,1.57039383,3323.2,3323.1,3.00922]
[1722412791549,1.57039383,3323.2,3323.1,6.00922]
[1722412791756,1.57039383,3323.2,3323.1,6.98195666]
[1722412791968,1.57039383,3323.2,3323.1,3.98195666]
[1722412792144,1.57039383,3323.2,3323.1,3.00922]
[1722412793367,1.57039383,3323.3,3323.1,3.00922]
[1722412794271,1.56924298,3323.3,3323.1,3.00922]
[1722412794468,1.56924185,3323.3,3323.2,3.00914]
[1722412794684,1.56924185,3323.3,3323.0,3.00931]
[1722412794974,2.99409022,3323.6,3323.1,3.00923]
[1722412794975,1.56904953,3323.2,3323.1,3.00923]
[1722412795667,2.99409022,3323.6,3323.1,3.00923]
[1722412795668,1.56904953,3323.3,3323.1,3.00923]
[1722412795980,1.56904953,3323.3,3323.2,3.00914]
[1722412796339,1.56865411,3323.3,3323.2,3.00914]
[1722412796789,1.56865411,3323.3,3323.0,3.00925]
[1722412797086,1.25489481,3323.1,3323.0,5.54104324]
[1722412797302,1.25489481,3323.1,3323.0,6.00925]
[1722412798377,1.5685701,3323.3,3323.1,3.00923]
[1722412798378,1.25489481,3323.2,3323.1,3.00923]
[1722412800119,1.5685701,3323.3,3323.1,3.00923]
[1722412800307,2.3671,3323.7,3323.0,3.0]
[1722412800308,5.3758,3323.7,3323.0,3.0]
[1722412800606,5.3758,3323.7,3323.2,3.00914]
[1722412800607,1.56772904,3323.3,3323.2,3.00914]
[1722412800963,1.56772904,3323.4,3323.2,3.00914]
[1722412801154,1.56772904,3323.4,3323.2,3.310054]
[1722412801373,1.25421167,3323.3,3323.2,3.310054]
[1722412801572,1.56768602,3323.4,3323.2,3.00914]
[1722412801885,1.56768602,3323.4,3323.3,3.00905]
[1722412802095,1.56768602,3323.4,3323.1,3.00916]
[1722412802398,1.25411679,3323.2,3323.1,4.022105]
[1722412802564,1.25411679,3323.3,3323.1,4.022105]
[1722412802764,1.25411679,3323.3,3323.2,6.01828]
[1722412802967,1.25400879,3323.4,3323.3,3.00905]
[1722412803161,1.25400879,3323.4,3323.1,4.022115]
[1722412803389,1.25400108,3323.5,3323.3,2.4392]
[1722412803715,1.25400108,3323.5,3323.4,3.00896]
[1722412804273,1.25400108,3323.5,3323.4,6.01792]
[1722412804473,1.25400108,3323.5,3323.4,7.08114297]
[1722412804963,1.25400108,3323.7,3323.5,3.00887]
[1722412805200,1.25400108,3323.7,3323.6,3.00878]
[1722412805405,1.25400108,3323.8,3323.7,3.00869]
[1722412806463,1.25400108,3323.9,3323.8,3.0086]
[1722412806690,1.56747831,3324.1,3323.9,3.00851]
[1722412807001,5.32038,3324.6,3323.9,3.00851]
[1722412807002,1.25410594,3324.0,3323.9,3.00851]
[1722412807667,1.25410594,3324.1,3324.0,6.01684]
[1722412807868,1.25410594,3324.2,3324.1,3.00833]
[1722412808404,1.5672206,3324.3,3324.1,3.00833]
[1722412808618,1.5672206,3324.3,3324.1,3.82379294]
[1722412808817,1.5672206,3324.2,3324.1,3.82379294]
[1722412809116,1.5672206,3324.2,3324.1,3.00833]
[1722412810511,1.5672206,3324.4,3324.0,3.00842]
[1722412810714,1.5672206,3324.4,3324.3,3.00815]
[1722412810874,1.25446025,3324.4,3324.3,6.0163]
[1722412811373,1.25446025,3324.6,3324.5,3.00797]
[1722412811970,1.25417807,3324.6,3324.5,3.00797]
[1722412812173,1.56827832,3324.7,3324.5,3.00797]
[1722412813031,1.56827832,3324.7,3324.3,3.00815]
[1722412813175,1.56827832,3324.7,3324.1,4.1193]
[1722412813176,1.25373873,3324.6,3324.4,3.00805]
[1722412813533,1.25373873,3324.5,3324.4,3.00805]
[1722412816597,1.25373873,3324.6,3324.5,3.00797]
[1722412817124,1.56713696,3324.7,3324.5,3.00797]
[1722412817693,1.25333066,3324.6,3324.5,3.00797]
[1722412819336,1.25333066,3324.7,3324.5,3.00797]
[1722412819511,1.25333066,3324.7,3324.6,3.00788]
[1722412820345,1.25333066,3324.7,3324.4,3.06820497]
[1722412820646,1.25333066,3324.8,3324.6,3.00788]
[1722412821993,1.25333066,3324.8,3324.7,3.00779]
[1722412822505,1.25333066,3324.8,3324.7,7.12658]
[1722412822784,1.25333066,3325.1,3325.0,3.00751]
[1722412824254,5.37748,3325.6,3325.0,3.00751]
[1722412824568,1.25246782,3325.1,3325.0,3.00751]
[1722412825559,1.25246782,3325.3,3325.1,3.00742]
[1722412826191,1.25246782,3325.4,3325.1,3.00742]
[1722412826503,1.25246782,3325.4,3325.2,5.34297493]
[1722412826688,1.25246782,3325.5,3325.3,3.00724]
[1722412826896,1.25246782,3325.5,3325.4,3.00715]
[1722412827606,1.25246782,3325.7,3325.4,3.00715]
[1722412828019,1.25246782,3325.8,3325.4,3.00715]
[1722412828394,1.25246782,3325.8,3325.5,3.00705]
[1722412829637,1.25246782,3325.9,3325.5,3.00705]
[1722412830698,1.25246782,3326.0,3325.5,3.00705]
[1722412831338,1.25246782,3326.0,3325.6,3.00697]
[1722412832039,3.63946782,3326.1,3325.7,3.00683]
[1722412832839,2.387,3326.1,3325.7,3.00683]
[1722412833012,1.25246782,3326.2,3325.8,3.00677]
[1722412833564,1.25246782,3326.4,3325.8,3.00677]
[1722412833853,1.25246782,3326.4,3326.0,3.00659]
[1722412834058,1.24976229,3326.5,3326.0,3.00659]
[1722412834411,6.60193229,3326.6,3326.0,3.00659]
[1722412834925,6.60193229,3326.6,3326.1,3.00651]
[1722412834926,2.3461,3326.6,3326.1,3.00651]
[1722412835250,3.00588,3326.9,3326.3,3.00628]
[1722412835251,1.24976229,3326.9,3326.3,3.00628]
[1722412835454,1.24976229,3326.9,3326.4,3.00624]
[1722412835752,5.40352,3327.0,3326.4,3.00624]
[1722412835953,6.21119223,3327.0,3326.4,3.00624]
[1722412836255,2.3978,3327.0,3326.4,3.00624]
[1722412836875,5.40352,3327.0,3326.4,3.00624]
[1722412837579,2.3978,3327.0,3326.4,3.00624]
[1722412838656,2.4335,3327.3,3326.5,1.17111792]
[1722412838865,2.4335,3327.3,3326.7,3.00591]
[1722412839234,2.4335,3327.3,3326.2,2.4038]
[1722412839235,1.111,3326.8,3326.2,2.4038]
[1722412839436,2.4335,3327.3,3326.2,1.111]
[1722412839636,4.11664,3327.1,3326.5,3.00615]
[1722412840066,5.43897,3327.3,3326.6,3.00606]
[1722412840355,3.00553,3327.2,3326.6,3.00606]
[1722412842181,3.5445,3327.3,3326.7,3.00597]
[1722412842677,2.4335,3327.3,3326.7,3.00597]
[1722412842846,3.5445,3327.3,3326.7,3.00597]
[1722412844195,6.54995,3327.3,3326.7,3.00597]
[1722412845093,5.43895,3327.3,3326.7,3.9106748]
[1722412845306,2.4335,3327.3,3326.7,3.9106748]
[1722412845644,3.00554,3327.2,3326.7,0.9047048]
[1722412845984,3.00554,3327.2,3326.6,6.040988]
[1722412848821,3.5445,3327.3,3326.7,3.00598]
[1722412848954,6.54995,3327.3,3326.7,3.00598]
[1722412850705,5.43895,3327.3,3326.7,3.00598]
[1722412852113,3.00545,3327.3,3326.7,3.00598]
[1722412854402,3.00545,3327.3,3326.7,3.9106848]
[1722412856494,3.00554,3327.2,3326.5,3.00609]
[1722412856673,3.00545,3327.3,3326.6,3.00606]
[1722412856879,1.111,3327.2,3326.6,3.00606]
[1722412857521,1.111,3327.2,3326.6,3.607275]
[1722412857914,4.11653,3327.2,3326.6,3.607275]
[1722412858096,4.11653,3327.2,3326.6,3.00606]
[1722412858796,1.111,3327.2,3326.3,6.5078]
[1722412858994,1.111,3326.5,3326.0,2.3754]
[1722412859398,1.111,3326.5,3326.1,3.00651]
[1722412859600,1.111,3326.8,3326.0,6.220891]
[1722412859801,1.111,3326.8,3326.3,3.00634]
[1722412860044,4.25311986,3326.9,3326.3,3.00634]
[1722412860350,3.00599,3326.7,3326.1,3.00645]
[1722412860654,1.24728986,3326.8,3326.2,3.00641]
[1722412860792,1.111,3326.7,3326.2,3.00641]
[1722412860995,4.11698,3326.7,3326.0,5.38195]
[1722412861217,3.00608,3326.6,3326.0,5.38195]
[1722412861738,4.11698,3326.7,3326.1,3.00651]
[1722412862563,5.36426986,3326.7,3326.1,3.00651]
[1722412862871,3.00616,3326.5,3326.0,3.024695]
[1722412863184,1.24728986,3326.6,3326.1,3.00651]
[1722412863473,1.24728986,3326.5,3326.0,5.38195]
[1722412863970,1.24728986,3326.6,3326.0,5.38195]
[1722412864190,3.00617,3326.5,3326.0,2.3754]
[1722412864470,4.25345986,3326.5,3326.0,2.3754]
[1722412865547,1.24728986,3326.4,3326.0,2.3754]
[1722412866582,1.24728986,3326.1,3325.7,2.4785]
[1722412867451,1.24728986,3326.0,3325.7,2.4785]
[1722412868646,1.24728986,3325.9,3325.7,2.4785]
[1722412868856,1.24728986,3326.0,3325.7,2.4785]
[1722412869036,1.24728986,3326.0,3325.8,3.00679]
[1722412869230,1.24728986,3326.1,3325.8,3.00679]
[1722412869427,1.24728986,3326.1,3325.9,3.0067]
[1722412869630,1.24728986,3326.0,3325.9,3.0067]
[1722412869873,1.24728986,3326.1,3325.9,3.0067]
[1722412870075,1.24728986,3326.1,3325.7,6.033877]
[1722412870287,1.24728986,3326.1,3325.8,0.6033987]
[1722412870452,1.24728986,3326.0,3325.8,3.6101787]
[1722412870630,1.24728986,3326.1,3325.8,3.6101787]
[1722412870830,1.24728986,3326.0,3325.8,3.6101787]
[1722412871030,1.24728986,3326.0,3325.9,3.67042257]
[1722412871335,1.25441348,3326.2,3326.1,3.00652]
[1722412871533,7.15990029,3326.7,3326.1,3.67421426]
[1722412871534,1.5673419,3326.3,3326.1,3.67421426]
[1722412871785,1.5673419,3326.3,3326.1,3.00652]
[1722412872564,1.5673419,3326.2,3326.1,3.00652]
[1722412873253,1.5673419,3326.2,3325.9,3.0067]
[1722412873596,1.25499221,3326.0,3325.9,4.02734587]
[1722412873900,1.88255741,3326.1,3325.6,3.00694]
[1722412874078,1.25508299,3325.7,3325.6,3.00694]
[1722412874289,1.56885374,3325.8,3325.6,3.00694]
[1722412874471,1.56885374,3325.8,3325.3,6.60371]
[1722412874472,1.25495116,3325.7,3325.4,3.00707]
[1722412874657,1.25495116,3325.7,3325.4,3.968148]
[1722412874658,1.25505345,3325.6,3325.4,3.968148]
[1722412874856,1.25505345,3325.6,3325.4,0.961078]
[1722412875046,1.25505345,3325.6,3325.4,3.00715]
[1722412875250,1.25505345,3325.5,3325.4,3.00715]
[1722412875451,1.25505345,3325.6,3325.4,3.00715]
[1722412875648,1.25505345,3325.6,3325.1,36.111]
[1722412875649,1.25505345,3325.5,3325.1,35.0]
[1722412875893,1.25513238,3325.3,3325.1,38.00742]
[1722412876106,1.25513238,3325.3,3325.1,35.0]
[1722412876270,1.25513238,3325.3,3325.1,38.00735]
[1722412876597,1.25513238,3325.3,3325.1,6.05636288]
[1722412876765,1.25513238,3325.3,3325.1,3.00735]
[1722412877350,1.25513238,3325.3,3325.2,3.00733]
[1722412877548,1.25513238,3325.4,3325.1,3.00735]
[1722412877996,1.25513238,3325.4,3325.2,3.00733]
[1722412879205,1.25513238,3325.3,3325.1,3.00742]
[1722412879714,1.25513238,3325.4,3325.0,37.2674]
[1722412879928,1.25513238,3325.3,3325.0,40.27486]
[1722412880753,1.56893825,3325.4,3325.0,40.27486]
[1722412880754,1.25513238,3325.2,3325.0,35.0]
[1722412881105,1.25513238,3325.1,3324.8,5.48808]
[1722412881404,1.25513238,3325.1,3324.8,40.48808]
[1722412881601,1.25513238,3325.1,3324.8,41.80480141]
[1722412881775,1.25513238,3325.0,3324.8,41.80480141]
[1722412882398,1.25513238,3325.1,3324.8,41.80480141]
[1722412882767,1.25513238,3325.1,3324.9,3.0076]
[1722412882968,1.25513238,3325.2,3324.8,41.80480141]
[1722412883301,1.25513238,3325.3,3325.1,3.00742]
[1722412883853,1.25513238,3325.3,3325.0,3.00751]
[1722412884100,1.25513238,3325.2,3325.0,6.05652288]
[1722412884797,1.25513238,3325.4,3325.0,6.05652288]
[1722412885113,1.25513238,3325.3,3325.0,6.05652288]
[1722412885299,1.25513238,3325.3,3325.0,3.00751]
[1722412885469,1.25513238,3325.2,3324.9,3.04901288]
[1722412885673,1.25513238,3325.3,3324.9,3.04901288]
[1722412885878,1.25513238,3325.2,3324.9,6.05655288]
[1722412886384,1.25513238,3325.2,3325.0,5.59624579]
[1722412886558,1.25513238,3325.4,3325.0,2.58873579]
[1722412887198,1.25513238,3325.3,3325.0,5.59624579]
[1722412887806,1.25513238,3325.4,3325.0,3.00751]
[1722412888308,1.25513238,3325.4,3325.1,3.00735]
[1722412888903,1.25513238,3325.4,3325.2,3.00733]
[1722412889273,1.25513238,3325.5,3324.9,38.00757]
[1722412889605,1.25513238,3325.4,3325.1,3.00741]
[1722412889906,1.25513238,3325.3,3325.0,6.05652288]
[1722412890407,1.25513238,3325.3,3325.0,3.04901288]
[1722412890916,1.2521935,3325.3,3325.0,3.04901288]
[1722412891487,1.2521935,3325.3,3325.0,6.05652288]
[1722412891693,1.2521935,3325.3,3325.1,6.05640288]
[1722412891899,1.2521935,3325.4,3325.1,6.05640288]
[1722412892107,1.2521935,3325.3,3325.1,3.04901288]
[1722412894423,4.11798,3325.6,3325.1,3.04901288]
[1722412894596,1.25221695,3325.3,3325.1,3.04901288]
[1722412894775,1.25223511,3325.3,3325.1,3.04901288]
[1722412895573,1.25223511,3325.3,3325.0,3.00745]
[1722412895774,1.25223511,3325.3,3325.0,38.00745]
[1722412896120,1.25223511,3325.2,3324.8,1.31672141]
[1722412896282,1.25223511,3325.2,3324.7,3.00776]
[1722412896489,1.25223511,3325.2,3324.8,35.0]
[1722412896815,1.25223511,3325.1,3324.6,3.00787]
[1722412897023,1.25223511,3325.1,3324.7,3.845457]
[1722412897321,1.25223511,3325.1,3324.7,38.845457]
[1722412897527,1.25223511,3325.1,3324.5,2.3689]
[1722412897818,1.25223511,3325.1,3324.5,3.0079]
[1722412897819,1.25223511,3325.0,3324.5,3.0079]
[1722412898019,1.25223511,3324.9,3324.5,3.0079]
[1722412898388,2.2634,3324.9,3324.5,3.0079]
[1722412898771,3.51563511,3324.9,3324.5,3.0079]
[1722412899412,2.2634,3324.9,3324.5,3.0079]
[1722412899620,1.111,3324.8,3324.4,35.0]
[1722412899769,1.25223511,3324.8,3324.4,38.008]
[1722412900181,1.25223511,3324.8,3324.4,3.008]
[1722412900503,1.25223511,3324.8,3324.5,3.00796]
[1722412901003,1.25223511,3324.8,3324.3,3.3089]
[1722412901306,1.25223511,3324.8,3324.3,0.30082]
[1722412901524,1.25223511,3324.8,3324.4,3.00799]
[1722412901879,1.25223511,3324.9,3324.7,3.00773]
[1722412902736,1.25223511,3325.0,3324.8,3.00769]
[1722412903091,3.5425,3325.4,3324.8,3.00769]
[1722412903092,1.25223511,3325.1,3324.8,3.00769]
[1722412903422,1.25223511,3325.0,3324.8,3.00769]
[1722412903626,1.25223511,3325.1,3324.8,3.00769]
[1722412904116,1.25223511,3325.0,3324.8,3.00769]
[1722412905702,1.25223511,3325.1,3324.9,3.0076]
[1722412906041,1.25223511,3325.0,3324.8,0.60757115]
[1722412906197,1.25223511,3325.0,3324.6,3.06799011]
[1722412906533,1.25223511,3325.1,3324.6,3.06799011]
[1722412906690,1.25223511,3325.0,3324.6,3.06799011]
[1722412907206,1.25223511,3325.1,3324.8,3.00765]
[1722412907419,1.25223511,3325.0,3324.8,3.00765]
[1722412907638,1.25223511,3325.0,3324.9,3.0076]
[1722412909236,1.56618261,3325.2,3324.9,3.0076]
[1722412909237,1.25223511,3325.1,3324.9,3.0076]
[1722412909590,1.25223511,3325.0,3324.9,3.0076]
[1722412910740,2.67718261,3325.1,3324.6,3.00786]
[1722412910889,1.25347907,3324.8,3324.6,3.00786]
[1722412911097,1.25347907,3324.7,3324.6,3.00786]
[1722412911717,1.25347907,3324.7,3324.4,5.49734]
[1722412911895,1.25347907,3324.7,3324.4,2.4893]
[1722412912100,1.25347907,3324.7,3324.4,3.00804]
[1722412912503,1.25347907,3324.6,3324.3,3.00809]
[1722412912714,1.25347907,3324.6,3324.4,3.00802]
[1722412912917,1.25347907,3324.6,3324.4,3.609631]
[1722412913228,1.25347907,3324.7,3324.4,3.609631]
[1722412914147,1.25347907,3324.6,3324.4,3.609661]
[1722412914315,1.25347907,3324.6,3324.4,3.00805]
[1722412914659,1.25347907,3324.6,3324.5,3.00797]
[1722412915440,1.25347907,3324.8,3324.6,3.0078]
[1722412915763,1.25347907,3324.8,3324.5,5.33677]
[1722412915764,1.25347907,3324.8,3324.7,3.00772]
[1722412916145,1.25347907,3324.9,3324.7,3.00772]
[1722412916518,1.25347907,3324.8,3324.7,3.00772]
[1722412916718,1.25347907,3324.8,3324.7,6.05673288]
[1722412917258,1.25347907,3324.9,3324.8,3.00769]
[1722412917412,1.56785164,3325.0,3324.8,3.00769]
[1722412917615,1.56785164,3325.1,3324.9,3.91404229]
[1722412917815,1.56785164,3325.1,3324.9,3.0076]
[1722412918059,1.56785164,3325.0,3324.9,3.0076]
[1722412918248,1.56785164,3325.1,3324.9,3.0076]
[1722412918452,1.56785164,3325.1,3324.7,6.05673288]
[1722412918453,1.88142197,3325.3,3325.0,3.00751]
[1722412918651,2.99242197,3325.4,3325.0,3.00751]
[1722412919086,1.56911567,3325.1,3325.0,3.00751]
[1722412919573,1.111,3325.4,3325.0,3.00751]
[1722412919716,1.88382245,3325.2,3325.0,3.00751]
[1722412919921,1.88382245,3325.3,3325.0,3.00751]
[1722412920160,1.88382245,3325.3,3325.1,3.00742]
[1722412920364,1.88382245,3325.3,3324.9,3.00759]
[1722412920365,2.99482245,3325.4,3324.9,3.64720726]